bitfinex/quotes_ETHUSD_20250904
["timestamp","ask_amount","ask_price","bid_price","bid_amount"]
[1756971132830,3.51110532,4375.4,4375.3,0.21684064]
[1756971133417,3.07030532,4375.4,4375.3,0.21684064]
[1756971133817,0.4744,4375.4,4375.3,0.21684064]
[1756971134436,3.1136,4375.5,4375.3,0.21684064]
[1756971134633,3.1136,4375.5,4375.4,0.21284064]
[1756971134945,3.60669171,4375.5,4375.4,0.21284064]
[1756971135106,4.08109171,4375.5,4375.4,0.21284064]
[1756971136831,0.49309171,4375.5,4375.4,3.58434596]
[1756971137032,0.001,4375.8,4375.7,2.28534862]
[1756971137033,0.49409171,4375.8,4375.7,2.28534862]
[1756971137234,0.001,4375.8,4375.7,2.49818926]
[1756971137431,0.001,4375.8,4375.7,3.24608926]
[1756971138013,0.001,4375.8,4375.7,7.44118926]
[1756971139742,0.001,4375.8,4375.7,7.10308926]
[1756971141852,0.001,4375.8,4375.7,7.10208926]
[1756971142457,0.001,4375.8,4375.7,11.32188926]
[1756971145455,0.001,4375.8,4375.7,11.65998926]
[1756971146027,0.001,4375.8,4375.7,11.32188926]
[1756971148529,0.0002,4375.8,4375.7,11.32188926]
[1756971148930,0.0002,4375.8,4375.7,7.55458926]
[1756971149168,0.0002,4375.8,4375.7,7.21648926]
[1756971149345,0.0002,4375.8,4375.7,7.30807809]
[1756971150668,0.0002,4375.8,4375.7,7.64617809]
[1756971151066,0.0002,4375.8,4375.7,7.64517809]
[1756971153572,0.0002,4375.8,4375.7,7.30707809]
[1756971154470,0.0002,4375.8,4375.7,11.52687809]
[1756971156749,0.0002,4375.8,4375.7,11.31403745]
[1756971156953,0.0002,4375.8,4375.7,11.52636864]
[1756971160037,0.0002,4375.8,4375.7,7.22196864]
[1756971160244,0.0002,4375.8,4375.7,11.07696864]
[1756971160707,0.7851,4375.8,4375.7,6.83187981]
[1756971160879,0.7851,4375.8,4375.7,4.54653119]
[1756971161174,1.2448,4375.8,4375.7,4.06633119]
[1756971161373,1.3592,4375.8,4375.7,4.06633119]
[1756971161873,0.8995,4375.8,4375.7,4.06633119]
[1756971162041,0.0002,4375.8,4375.7,7.12637981]
[1756971162240,0.0002,4375.8,4375.7,7.24077981]
[1756971164462,0.0002,4375.8,4375.7,3.38677981]
[1756971164643,0.0002,4375.8,4375.7,7.24077981]
[1756971168691,0.0002,4375.8,4375.7,6.77437981]
[1756971170499,0.0002,4375.8,4375.7,6.77499064]
[1756971171777,0.0002,4375.8,4375.7,6.46669064]
[1756971172403,0.0002,4375.8,4375.7,10.99479064]
[1756971173700,0.0002,4375.8,4375.7,6.83249064]
[1756971173701,0.7851,4375.8,4375.7,6.83249064]
[1756971173897,0.7851,4375.8,4375.7,10.68649064]
[1756971174196,0.4936,4375.8,4375.7,10.68649064]
[1756971174599,0.7843,4375.8,4375.7,10.68649064]
[1756971176795,0.4936,4375.8,4375.7,10.68649064]
[1756971177807,0.4936,4375.8,4375.7,12.44349064]
[1756971179306,0.4936,4375.8,4375.7,12.93709064]
[1756971179469,0.0002,4375.9,4375.8,2.2852964]
[1756971179674,0.0002,4375.9,4375.8,2.96463842]
[1756971179905,0.0002,4375.9,4375.8,3.27293842]
[1756971183902,0.0002,4375.9,4375.8,2.80653842]
[1756971184216,0.0002,4375.9,4375.8,6.71803842]
[1756971185480,0.0002,4375.9,4375.8,10.57103842]
[1756971185681,0.7592,4375.9,4375.8,4.43274202]
[1756971185880,1.2228,4375.9,4375.8,10.57103842]
[1756971186217,1.2228,4375.9,4375.8,8.28574202]
[1756971186604,0.7592,4375.9,4375.8,8.28574202]
[1756971186928,0.0002,4375.9,4375.8,10.87183842]
[1756971187088,0.0002,4375.9,4375.8,11.30653842]
[1756971188380,0.0002,4375.9,4375.8,22.67857289]
[1756971188819,0.0002,4375.9,4375.8,22.34527289]
[1756971189732,0.0002,4375.9,4375.8,10.98523842]
[1756971190023,0.4724,4375.9,4375.8,10.68443842]
[1756971190186,0.0002,4375.9,4375.8,10.68443842]
[1756971190391,0.0002,4375.9,4375.8,10.98523842]
[1756971190843,0.0002,4375.9,4375.8,10.98530377]
[1756971191406,0.0002,4375.9,4375.8,11.42000377]
[1756971197230,0.0002,4375.9,4375.8,11.75330377]
[1756971198226,0.0002,4375.9,4375.8,11.42000377]
[1756971199202,0.0002,4375.9,4375.8,12.21200377]
[1756971199422,1.140376,4376.0,4375.9,2.28524417]
[1756971199629,1.140376,4376.0,4375.9,6.78395154]
[1756971199833,1.140376,4376.0,4375.9,7.08460237]
[1756971200222,1.140376,4376.0,4375.9,7.77145408]
[1756971201645,1.140376,4376.0,4375.9,8.56345408]
[1756971203021,1.140376,4376.0,4375.9,4.71245408]
[1756971203228,1.140376,4376.0,4375.9,8.56345408]
[1756971204759,0.001,4376.3,4376.2,7.29588751]
[1756971205051,0.001,4376.3,4376.2,11.35974571]
[1756971205241,0.001,4376.3,4376.2,12.20964571]
[1756971205442,0.001,4376.3,4376.2,8.35864571]
[1756971205656,0.001,4376.3,4376.2,11.77494571]
[1756971205828,0.001,4376.3,4376.2,11.86651043]
[1756971206028,0.76,4376.3,4376.2,6.92271043]
[1756971206331,0.76,4376.3,4376.2,10.77371043]
[1756971206822,0.4732,4376.3,4376.2,10.77371043]
[1756971208329,0.4732,4376.3,4376.2,10.77346089]
[1756971208630,0.4732,4376.3,4376.2,6.92246089]
[1756971208848,0.7617,4376.3,4376.2,10.65806089]
[1756971209855,0.4732,4376.3,4376.2,10.65806089]
[1756971210058,0.001,4376.3,4376.2,10.95886089]
[1756971210226,0.001,4376.3,4376.2,11.53926089]
[1756971210652,0.001,4376.3,4376.2,7.22326089]
[1756971210958,0.001,4376.3,4376.2,10.77246089]
[1756971211155,0.001,4376.3,4376.2,11.05816089]
[1756971211359,0.001,4376.3,4376.2,11.52416089]
[1756971211741,0.001,4376.3,4376.2,11.05816089]
[1756971212243,0.001,4376.3,4376.2,7.20816089]
[1756971212445,0.001,4376.3,4376.2,11.05816089]
[1756971212747,0.3012,4376.3,4376.2,10.77246089]
[1756971212946,0.7562,4376.3,4376.2,10.77246089]
[1756971213145,0.001,4376.3,4376.2,11.05816089]
[1756971214251,0.001,4376.3,4376.2,22.44849536]
[1756971215234,0.001,4376.3,4376.2,26.24049536]
[1756971215437,0.001,4376.3,4376.2,26.57379536]
[1756971215942,0.001,4376.3,4376.2,26.24049536]
[1756971218263,0.001,4376.3,4376.2,21.92449536]
[1756971218450,0.456,4376.3,4376.2,25.48779536]
[1756971218764,0.001,4376.3,4376.2,26.23949536]
[1756971219159,0.001,4376.3,4376.2,25.77349536]
[1756971219533,0.001,4376.3,4376.2,26.23949536]
[1756971219735,0.456,4376.7,4376.6,7.29267867]
[1756971219933,0.001,4376.7,4376.6,13.22468733]
[1756971220154,0.001,4376.7,4376.6,24.9007218]
[1756971220359,0.001,4376.7,4376.6,27.99228609]
[1756971222640,0.001,4376.7,4376.6,28.32558609]
[1756971223271,1e-08,4376.9,4376.8,3.07677426]
[1756971223568,1e-08,4376.9,4376.8,21.35418292]
[1756971223875,1e-08,4376.9,4376.8,22.10588292]
[1756971224971,0.00020001,4377.1,4377.0,3.07666986]
[1756971225143,0.00020001,4377.1,4377.0,21.06261299]
[1756971225345,0.00020001,4377.1,4377.0,21.81431299]
[1756971225547,0.00020001,4377.1,4377.0,21.90585508]
[1756971226245,0.00020001,4377.1,4377.0,18.05685508]
[1756971226448,0.00020001,4377.1,4377.0,21.90485508]
[1756971226959,0.00020001,4377.1,4377.0,17.59085508]
[1756971227361,0.00020001,4377.1,4377.0,21.43885508]
[1756971227656,0.00020001,4377.1,4377.0,21.90485508]
[1756971228472,0.001,4377.6,4377.0,21.90485508]
[1756971228665,0.4768,4377.8,4377.7,6.04290453]
[1756971228859,0.4768,4377.8,4377.7,11.85951319]
[1756971229070,0.777,4377.8,4377.7,11.85951319]
[1756971229274,0.3252,4377.8,4377.7,12.54607881]
[1756971229775,0.7755,4377.8,4377.7,12.54607881]
[1756971230480,0.4518,4378.7,4377.9,2.28420018]
[1756971230683,0.455,4378.5,4378.4,2.28393933]
[1756971230920,0.7552,4378.5,4378.4,4.25254799]
[1756971231083,0.3002,4378.5,4378.4,8.10054799]
[1756971231254,0.3002,4378.5,4378.4,8.78702564]
[1756971231577,0.7552,4378.5,4378.4,8.78702564]
[1756971232161,0.3002,4378.5,4378.4,8.78702564]
[1756971232376,0.3002,4378.5,4378.4,4.93902564]
[1756971232579,0.3002,4378.5,4378.4,8.78602564]
[1756971233181,0.3002,4378.5,4378.4,4.93902564]
[1756971233386,0.7552,4378.5,4378.4,8.78602564]
[1756971233591,0.7552,4378.5,4378.4,8.90042564]
[1756971233878,1.2055,4378.5,4378.4,8.90042564]
[1756971235199,0.7552,4378.5,4378.4,8.90042564]
[1756971235797,0.7552,4378.5,4378.4,12.65902563]
[1756971238262,0.3002,4378.5,4378.4,12.65902563]
[1756971238498,0.025,4378.8,4378.7,2.28378285]
[1756971238705,0.025,4378.8,4378.7,6.34339151]
[1756971238861,0.4768,4378.8,4378.7,6.34339151]
[1756971239060,0.777,4378.8,4378.7,6.34339151]
[1756971239398,0.7802,4378.8,4378.7,10.1019915]
[1756971239956,1.2305,4378.8,4378.7,10.1019915]
[1756971240897,1.2305,4378.8,4378.7,3.97120865]
[1756971240898,1.2138,4378.8,4378.7,3.97120865]
[1756971241088,1.3282,4378.8,4378.7,7.81720865]
[1756971241297,1.3282,4378.8,4378.7,10.1009915]
[1756971242004,0.8946,4378.8,4378.7,10.1009915]
[1756971242580,0.8946,4378.8,4378.7,19.03261203]
[1756971242581,0.7802,4378.8,4378.7,19.03261203]
[1756971244605,0.025,4378.8,4378.7,21.72888968]
[1756971247912,0.025,4378.8,4378.7,21.24408968]
[1756971248089,0.3353,4378.8,4378.7,20.51108968]
[1756971248291,0.025,4378.8,4378.7,20.51108968]
[1756971248487,1e-08,4378.8,4378.7,24.72888968]
[1756971248988,1e-08,4378.8,4378.7,31.72888968]
[1756971249404,1e-08,4378.8,4378.7,21.72888968]
[1756971249685,1e-08,4378.8,4378.7,21.95788968]
[1756971250396,0.02420001,4379.8,4379.7,11.21488194]
[1756971250716,0.02420001,4379.8,4379.7,20.78709059]
[1756971250935,0.33450001,4379.8,4379.7,20.78709059]
[1756971251217,0.33450001,4379.8,4379.7,21.24689059]
[1756971251891,0.79430001,4379.8,4379.7,21.24689059]
[1756971252081,0.79430001,4379.8,4379.7,12.31527006]
[1756971252488,0.79430001,4379.8,4379.7,8.55667007]
[1756971252913,1.22790001,4379.8,4379.7,8.55667007]
[1756971253618,0.02420001,4379.8,4379.7,8.55667007]
[1756971253793,0.02420001,4379.8,4379.7,17.7926906]
[1756971254119,0.79430001,4379.8,4379.7,17.4882906]
[1756971254687,0.79430001,4379.8,4379.7,13.6432906]
[1756971255022,0.79430001,4379.8,4379.7,17.4872906]
[1756971255317,0.79430001,4379.8,4379.7,8.55567007]
[1756971255696,0.79430001,4379.8,4379.7,4.71167007]
[1756971255902,0.79430001,4379.8,4379.7,8.09587007]
[1756971256223,0.79430001,4379.8,4379.7,8.09486578]
[1756971256523,0.79530001,4379.8,4379.7,8.09486578]
[1756971256726,0.02520001,4379.8,4379.7,8.09486578]
[1756971257207,0.02520001,4379.8,4379.7,8.82786578]
[1756971257413,0.02520001,4379.8,4379.7,9.28766578]
[1756971257824,0.02520001,4379.8,4379.7,10.07966578]
[1756971258921,0.02520001,4379.8,4379.7,10.19406578]
[1756971259825,0.02520001,4379.8,4379.7,9.76546578]
[1756971259996,0.02520001,4379.8,4379.7,10.19406578]
[1756971260196,0.33550001,4379.8,4379.7,9.46106578]
[1756971261231,0.79530001,4379.8,4379.7,8.66906578]
[1756971263232,0.33550001,4379.8,4379.7,8.66906578]
[1756971266132,0.02520001,4379.8,4379.7,8.66906578]
[1756971266337,0.02520001,4379.8,4379.7,8.97346578]
[1756971267022,0.02520001,4379.8,4379.7,12.73206577]
[1756971267638,0.02520001,4379.8,4379.7,13.16066577]
[1756971268642,0.02520001,4379.8,4379.7,13.64546577]
[1756971269135,0.02520001,4379.8,4379.7,13.16066577]
[1756971270234,0.02520001,4379.8,4379.7,13.63666577]
[1756971270604,0.02520001,4379.8,4379.7,14.42866577]
[1756971271242,0.02520001,4379.8,4379.7,14.65766577]
[1756971271831,0.02520001,4379.8,4379.7,14.65566577]
[1756971272033,0.02520001,4379.8,4379.7,10.81366577]
[1756971272217,0.02520001,4379.8,4379.7,14.65566577]
[1756971274352,0.02520001,4379.8,4379.7,14.17966577]
[1756971275843,0.02440001,4379.8,4379.7,14.17966577]
[1756971276449,0.02440001,4379.8,4379.7,14.65566577]
[1756971276623,0.02440001,4379.8,4379.7,14.17966577]
[1756971277247,1e-08,4379.8,4379.7,14.65566577]
[1756971277433,0.001,4380.3,4380.0,3.07510502]
[1756971277742,0.001,4380.3,4380.2,12.1210213]
[1756971277914,0.001,4380.3,4380.2,12.62892567]
[1756971278121,0.001,4380.3,4380.2,16.82782565]
[1756971278721,0.001,4380.3,4380.2,16.9193135]
[1756971279123,0.001,4380.3,4380.2,16.4790135]
[1756971279429,0.001,4380.3,4380.2,16.9193135]
[1756971280353,0.001,4380.3,4380.2,17.3953135]
[1756971280725,0.001,4380.3,4380.2,26.32693403]
[1756971280929,0.001,4380.3,4380.2,17.3953135]
[1756971285740,0.001,4380.3,4380.2,7.98769297]
[1756971286055,0.001,4380.3,4380.2,16.70770913]
[1756971287151,0.001,4380.3,4380.2,20.10740913]
[1756971287664,0.001,4380.3,4380.2,20.31919332]
[1756971288945,0.001,4380.3,4380.2,20.75949332]
[1756971290262,0.001,4380.3,4380.2,20.02289332]
[1756971290840,0.5094,4380.8,4380.7,6.35034018]
[1756971291165,0.5094,4380.8,4380.7,12.15712437]
[1756971291363,0.8021,4380.8,4380.7,12.27152437]
[1756971291669,0.8021,4380.8,4380.7,12.16561267]
[1756971292330,0.8031,4380.8,4380.7,11.47952437]
[1756971293070,1.2841,4380.8,4380.7,11.47952437]
[1756971293278,1.2841,4380.8,4380.7,7.63952437]
[1756971293435,1.2841,4380.8,4380.7,11.47952437]
[1756971295939,0.3437,4380.8,4380.7,11.47952437]
[1756971297956,0.051,4380.8,4380.7,11.47952437]
[1756971298268,0.3437,4380.8,4380.7,11.47952437]
[1756971299537,0.051,4380.8,4380.7,11.47952437]
[1756971300271,0.3437,4380.8,4380.7,11.47952437]
[1756971300474,0.3437,4380.8,4380.7,7.63973945]
[1756971300640,0.051,4380.8,4380.7,11.47873945]
[1756971300840,0.051,4380.8,4380.7,13.48873945]
[1756971301342,0.0502,4380.8,4380.7,14.40375244]
[1756971301560,0.0502,4380.8,4380.7,25.29738128]
[1756971302562,0.0502,4380.8,4380.7,20.32648128]
[1756971302865,0.0502,4380.8,4380.7,25.06838128]
[1756971304479,0.0502,4380.8,4380.7,21.22938128]
[1756971304670,0.0502,4380.8,4380.7,25.06738128]
[1756971305180,0.0502,4380.8,4380.7,9.43285244]
[1756971305494,0.3559,4380.8,4380.7,12.95575244]
[1756971305690,0.0502,4380.8,4380.7,12.95575244]
[1756971305902,0.0502,4380.8,4380.7,13.27085244]
[1756971306177,0.0502,4380.8,4380.7,13.27076125]
[1756971306387,0.3559,4380.8,4380.7,8.32566125]
[1756971306552,0.3559,4380.8,4380.7,11.47764826]
[1756971307953,1.2662,4380.8,4380.7,11.47764826]
[1756971309180,1.2662,4380.8,4380.7,7.63964826]
[1756971309368,1.2662,4380.8,4380.7,11.36324826]
[1756971309571,1.2662,4380.8,4380.7,8.08764828]
[1756971310353,1.2662,4380.8,4380.7,4.24964828]
[1756971310553,1.2662,4380.8,4380.7,8.08764828]
[1756971311283,0.3559,4380.8,4380.7,8.08764828]
[1756971311480,0.8007,4380.8,4380.7,8.08764828]
[1756971311652,0.3559,4380.8,4380.7,8.08764828]
[1756971312781,0.3559,4380.8,4380.7,8.08788682]
[1756971313656,0.3559,4380.8,4380.7,4.24988682]
[1756971313884,0.3559,4380.8,4380.7,8.08788682]
[1756971314574,0.3559,4380.8,4380.7,11.3634868]
[1756971323091,0.3559,4380.8,4380.7,11.36345929]
[1756971323591,0.3559,4380.8,4380.7,7.52545929]
[1756971323794,0.8214,4380.8,4380.7,7.52545929]
[1756971323993,1.2662,4380.8,4380.7,11.36245929]
[1756971324365,0.3559,4380.8,4380.7,11.36245929]
[1756971326577,0.3551,4380.8,4380.7,11.36245929]
[1756971328399,0.3551,4380.8,4380.7,11.36145929]
[1756971328970,0.3551,4380.8,4380.7,7.52545929]
[1756971329174,1.2654,4380.8,4380.7,11.36145929]
[1756971329673,0.3551,4380.8,4380.7,11.36145929]
[1756971330188,0.0494,4380.8,4380.7,11.36145929]
[1756971330393,0.0494,4380.8,4380.7,11.36162897]
[1756971330796,0.0494,4380.8,4380.7,11.66062897]
[1756971331001,0.0494,4380.8,4380.7,12.60672897]
[1756971331205,0.0494,4380.8,4380.7,12.72112897]
[1756971332314,0.0494,4380.8,4380.7,12.83552897]
[1756971336198,0.0494,4380.8,4380.7,8.99952897]
[1756971336533,0.0494,4380.8,4380.7,12.83452897]
[1756971337512,0.0494,4380.8,4380.7,11.88842897]
[1756971337921,0.0494,4380.8,4380.7,12.35462897]
[1756971338104,0.0494,4380.8,4380.7,12.83452897]
[1756971338721,0.0494,4380.8,4380.7,11.58942897]
[1756971339135,0.0494,4380.8,4380.7,8.05342897]
[1756971339624,0.0494,4380.8,4380.7,11.88842897]
[1756971340529,0.0494,4380.8,4380.7,12.35462897]
[1756971340687,0.0494,4380.8,4380.7,12.83452897]
[1756971342301,0.3617,4380.8,4380.7,7.75442897]
[1756971342503,0.0494,4380.8,4380.7,11.77402897]
[1756971343218,0.0494,4380.8,4380.7,9.44452899]
[1756971343922,0.0494,4380.8,4380.7,9.55892899]
[1756971344292,0.0494,4380.8,4380.7,9.55901819]
[1756971346904,0.0494,4380.8,4380.7,9.44461819]
[1756971347225,0.0494,4380.8,4380.7,12.72021817]
[1756971347793,0.0494,4380.8,4380.7,7.93911817]
[1756971348004,0.0494,4380.8,4380.7,11.47411817]
[1756971348204,0.0494,4380.8,4380.7,11.77311817]
[1756971349924,0.0494,4380.8,4380.7,7.93911817]
[1756971350124,0.3617,4380.8,4380.7,7.64011817]
[1756971350501,0.3617,4380.8,4380.7,11.47411817]
[1756971351092,0.3617,4380.8,4380.7,11.77311817]
[1756971351093,0.0494,4380.8,4380.7,11.77311817]
[1756971352109,0.0486,4380.8,4380.7,11.77311817]
[1756971352335,0.0486,4380.8,4380.7,12.23931817]
[1756971352635,0.0486,4380.8,4380.7,12.71921817]
[1756971352844,0.0486,4380.8,4380.7,11.77311817]
[1756971353325,0.0486,4380.8,4380.7,12.23931817]
[1756971353522,0.0486,4380.8,4380.7,12.71921817]
[1756971353914,0.0486,4380.8,4380.7,12.23931817]
[1756971354119,0.0486,4380.8,4380.7,11.47411817]
[1756971354336,0.3609,4380.8,4380.7,11.47411817]
[1756971355239,0.3609,4380.8,4380.7,11.47311817]
[1756971355827,0.0486,4380.8,4380.7,11.77211817]
[1756971356052,0.3609,4380.8,4380.7,11.47311817]
[1756971357256,0.0486,4380.8,4380.7,12.25201817]
[1756971357430,0.0486,4380.8,4380.7,12.71821817]
[1756971357827,0.0486,4380.8,4380.7,13.51021817]
[1756971358033,0.0486,4380.8,4380.7,24.51824701]
[1756971359042,0.001,4381.3,4381.2,2.28247968]
[1756971359222,0.001,4381.3,4381.2,6.32785767]
[1756971359426,0.001,4381.3,4381.2,7.20745767]
[1756971359630,0.001,4381.3,4381.2,6.74125767]
[1756971360031,0.001,4381.3,4381.2,6.44225767]
[1756971360270,0.001,4381.3,4381.2,9.97365765]
[1756971360566,0.001,4381.3,4381.2,8.47105767]
[1756971360733,0.001,4381.3,4381.2,8.61045767]
[1756971363424,0.001,4381.3,4381.2,23.75405046]
[1756971363647,0.001,4381.7,4381.6,3.07427131]
[1756971363947,0.001,4381.7,4381.6,8.9880493]
[1756971364249,0.001,4381.7,4381.6,10.3392493]
[1756971364645,0.001,4381.7,4381.6,19.25584211]
[1756971364951,0.001,4381.7,4381.6,9.4068493]
[1756971365252,0.3131,4381.7,4381.6,8.3104493]
[1756971365656,0.001,4381.7,4381.6,11.84184928]
[1756971365852,0.3131,4381.7,4381.6,11.53744928]
[1756971366419,0.3131,4381.7,4381.6,11.30864928]
[1756971366619,1.2191,4381.7,4381.6,11.30864928]
[1756971367152,1.2191,4381.7,4381.6,7.47664928]
[1756971367457,1.2191,4381.7,4381.6,5.79937799]
[1756971368258,1.2191,4381.7,4381.6,8.0816493]
[1756971369349,1.2191,4381.7,4381.6,5.79937799]
[1756971369550,1.2191,4381.7,4381.6,8.0816493]
[1756971369760,1.2191,4381.7,4381.6,1.96737799]
[1756971370162,1.2191,4381.7,4381.6,5.79837799]
[1756971370553,3.50131922,4381.7,4381.6,5.79837799]
[1756971371143,6.50131922,4381.7,4381.6,1.96737799]
[1756971371352,6.9937059,4381.7,4381.6,5.79839403]
[1756971372129,4.71148668,4381.7,4381.6,4.04339403]
[1756971372334,0.80548668,4381.7,4381.6,4.04339403]
[1756971372661,0.1154,4381.7,4381.6,6.32566534]
[1756971373036,0.1154,4381.7,4381.6,6.63006534]
[1756971373330,0.001,4381.7,4381.6,6.63006534]
[1756971373535,0.001,4381.7,4381.6,7.67686534]
[1756971373730,0.001,4381.7,4381.6,7.21446534]
[1756971373963,0.001,4381.7,4381.6,3.38346534]
[1756971374152,0.001,4381.7,4381.6,6.85986534]
[1756971374357,0.001,4381.7,4381.6,7.32986534]
[1756971375471,0.001,4381.7,4381.6,6.85986534]
[1756971375636,0.001,4381.7,4381.6,7.32226534]
[1756971375835,0.001,4381.7,4381.6,7.79226534]
[1756971376035,0.001,4381.7,4381.6,6.85986534]
[1756971376360,0.001,4381.7,4381.6,3.02886534]
[1756971376549,0.001,4381.7,4381.6,5.95146532]
[1756971376550,0.3131,4381.7,4381.6,5.95146532]
[1756971376750,0.3131,4381.7,4381.6,5.83706532]
[1756971376940,0.3131,4381.7,4381.6,9.66806532]
[1756971377543,0.3123,4381.7,4381.6,9.55266532]
[1756971378366,0.7798,4381.7,4381.6,3.43917948]
[1756971378535,0.3123,4381.7,4381.6,9.55245079]
[1756971379635,0.0002,4381.7,4381.6,9.55245079]
[1756971379836,0.0002,4381.7,4381.6,6.32545081]
[1756971381341,0.0002,4381.7,4381.6,8.07945081]
[1756971381570,0.0002,4381.7,4381.6,8.38385081]
[1756971382067,0.0002,4381.7,4381.6,9.31625081]
[1756971382248,0.0002,4381.7,4381.6,9.43065081]
[1756971382969,0.0002,4381.7,4381.6,9.43465081]
[1756971383358,0.0002,4381.7,4381.6,8.97225081]
[1756971383551,0.0002,4381.7,4381.6,8.19785081]
[1756971383870,0.0002,4381.7,4381.6,4.36685081]
[1756971384174,0.3123,4381.7,4381.6,8.19685081]
[1756971384843,0.3123,4381.7,4381.6,2.0845795]
[1756971385069,1.2183,4381.7,4381.6,5.8001795]
[1756971388039,0.0002,4381.7,4381.6,5.8001795]
[1756971388368,0.1146,4381.7,4381.6,8.38685081]
[1756971388586,0.1146,4381.7,4381.6,8.85685081]
[1756971389238,0.1146,4381.7,4381.6,11.61385079]
[1756971389442,0.0002,4381.7,4381.6,12.07625079]
[1756971389660,0.0002,4381.7,4381.6,12.66085079]
[1756971391064,0.0002,4381.7,4381.6,11.93045878]
[1756971391347,0.0002,4381.7,4381.6,5.13385081]
[1756971391544,0.0002,4381.7,4381.6,4.67145081]
[1756971391771,0.0002,4381.7,4381.6,9.46235081]
[1756971394371,0.0002,4381.7,4381.6,9.00125081]
[1756971394566,0.0002,4381.7,4381.6,9.46235081]
[1756971394866,0.0002,4381.7,4381.6,12.32048259]
[1756971395178,0.0002,4381.7,4381.6,8.49048259]
[1756971395359,0.0002,4381.7,4381.6,12.32048259]
[1756971396123,0.0002,4381.7,4381.6,8.49048259]
[1756971396258,0.0002,4381.7,4381.6,12.32048259]
[1756971396457,0.0002,4381.7,4381.6,15.54748257]
[1756971396884,0.0002,4381.7,4381.6,11.71748257]
[1756971397071,0.0002,4381.7,4381.6,15.54748257]
[1756971397466,0.0002,4381.7,4381.6,13.48135079]
[1756971399364,0.0002,4381.7,4381.6,9.65120732]
[1756971399566,0.0002,4381.7,4381.6,13.48020732]
[1756971401675,0.0002,4381.7,4381.6,13.59460732]
[1756971403008,0.0254,4381.8,4381.7,3.07421922]
[1756971403305,0.0254,4381.8,4381.7,4.24728652]
[1756971403476,0.0254,4381.8,4381.7,7.7804865]
[1756971403677,0.0254,4381.8,4381.7,7.87194277]
[1756971404208,0.0254,4381.8,4381.7,9.64184277]
[1756971404508,0.0254,4381.8,4381.7,10.40914277]
[1756971407087,0.0254,4381.8,4381.7,9.94804277]
[1756971409993,0.3273,4381.8,4381.7,9.6418186]
[1756971411576,0.0254,4381.8,4381.7,9.6418186]
[1756971411818,0.0254,4381.8,4381.7,9.9480186]
[1756971413127,0.0254,4381.8,4381.7,19.6584194]
[1756971413979,0.0254,4381.8,4381.7,5.95192659]
[1756971414179,0.0254,4381.8,4381.7,6.41381862]
[1756971414422,0.0254,4381.8,4381.7,6.72001862]
[1756971414924,0.0254,4381.8,4381.7,7.18111862]
[1756971415127,0.0254,4381.8,4381.7,7.68091862]
[1756971417099,0.0254,4381.8,4381.7,7.68103285]
[1756971418329,0.0254,4381.8,4381.7,10.90803283]
[1756971419425,0.0254,4381.8,4381.7,13.9679408]
[1756971419629,0.0254,4381.8,4381.7,14.0823408]
[1756971420425,0.0254,4381.8,4381.7,10.2543408]
[1756971420625,0.0254,4381.8,4381.7,14.0823408]
[1756971422443,0.0254,4381.8,4381.7,13.1214408]
[1756971423211,0.0254,4381.8,4381.7,10.85353283]
[1756971423408,0.0254,4381.8,4381.7,6.71933283]
[1756971423746,0.0254,4381.8,4381.7,11.31243283]
[1756971423936,0.0254,4381.8,4381.7,10.85273283]
[1756971424645,0.0254,4381.8,4381.7,7.02473283]
[1756971424819,0.0254,4381.8,4381.7,10.85273283]
[1756971425221,0.323,4381.8,4381.7,5.92733283]
[1756971425420,0.323,4381.8,4381.7,9.66387656]
[1756971426449,0.323,4381.8,4381.7,9.6642307]
[1756971427150,0.0254,4381.8,4381.7,9.6642307]
[1756971427849,0.0254,4381.8,4381.7,9.9696307]
[1756971428355,0.0246,4381.8,4381.7,9.9696307]
[1756971428753,0.0246,4381.8,4381.7,9.6642307]
[1756971428961,1.226,4381.8,4381.7,5.7218307]
[1756971429142,1.226,4381.8,4381.7,9.5488307]
[1756971429949,1.226,4381.8,4381.7,9.3362192]
[1756971430263,1.226,4381.8,4381.7,6.3218463]
[1756971430626,1.226,4381.8,4381.7,0.21262708]
[1756971430933,1.3404,4381.8,4381.7,7.26662706]
[1756971432249,1.3404,4381.8,4381.7,3.43962706]
[1756971432458,1.3404,4381.8,4381.7,7.26662706]
[1756971434529,1.3404,4381.8,4381.7,3.43962706]
[1756971435047,1.3404,4381.8,4381.7,7.26662706]
[1756971435729,0.8744,4381.8,4381.7,7.26662706]
[1756971435940,1.3404,4381.8,4381.7,7.26662706]
[1756971436139,1.3404,4381.8,4381.7,4.03962708]
[1756971436726,1.3404,4381.8,4381.7,0.21262708]
[1756971437065,1.3404,4381.8,4381.7,4.03962708]
[1756971439129,0.4366,4381.8,4381.7,4.03962708]
[1756971439459,0.0246,4381.8,4381.7,8.12230901]
[1756971439659,0.0246,4381.8,4381.7,11.46370899]
[1756971439845,0.0246,4381.8,4381.7,10.88394628]
[1756971442062,0.0246,4381.8,4381.7,7.05694628]
[1756971442229,0.0246,4381.8,4381.7,10.88394628]
[1756971442660,0.0246,4381.8,4381.7,7.05694628]
[1756971442965,0.0246,4381.8,4381.7,10.88394628]
[1756971443262,0.0246,4381.8,4381.7,7.05694628]
[1756971443459,0.0246,4381.8,4381.7,10.88394628]
[1756971444164,0.0246,4381.8,4381.7,9.96864628]
[1756971444473,0.3222,4381.8,4381.7,3.43962706]
[1756971444655,0.8744,4381.8,4381.7,7.26662706]
[1756971444980,1.3404,4381.8,4381.7,7.26662706]
[1756971445556,0.4366,4381.8,4381.7,7.26662706]
[1756971446143,1.3404,4381.8,4381.7,3.43962706]
[1756971446362,1.3404,4381.8,4381.7,7.26662706]
[1756971446675,0.4366,4381.8,4381.7,7.26662706]
[1756971446875,1.3404,4381.8,4381.7,3.43962706]
[1756971447060,1.3404,4381.8,4381.7,7.26662706]
[1756971447572,0.9026,4381.8,4381.7,7.26662706]
[1756971447775,0.4366,4381.8,4381.7,7.26662706]
[1756971448075,0.4366,4381.8,4381.7,4.03962708]
[1756971450146,0.8771,4381.8,4381.7,4.03962708]
[1756971450346,0.4366,4381.8,4381.7,4.03962708]
[1756971451971,0.4366,4381.8,4381.7,0.21262708]